Workbook

Sheet KPI and Intervention assessment
A2: OPTION 1
A4: Title: | B4: Business as usual / Do nothing
A5: Description: | B5: Maintains court buildings to current standard and capacity and continues to divert caseload to other courts when capacity is available.
D8: Benefit 1 | F8: Benefit 2 | H8: Benefit 3 | J8: Benefit 4 | L8: Weighted Benefit Score
D9: 0.25 | E9: 0.15 | F9: 0.2 | G9: 0.15 | H9: 0.15 | I9: 0.1 | J9: 0 | K9: 0
B10: Interventions | C10: % | D10: KPI 1 More timely resolution | E10: KPI 2 Reduction in costs | F10: KPI 1 Reduction in re-offending | G10: KPI 2 Increased program completion | H10: KPI 2 Increased program completion | I10: KPI 2 Reduce security risks | J10: KPI 1 | K10: KPI 2
B11: Maintain current court building, capacity and level of operations | C11: 0.8 | D11: 0 | E11: 0 | F11: 0 | G11: 0 | H11: 0 | I11: 0 | J11: 0 | K11: 0
B12: Divert portion of caseload to other regional courts with spare capacity | C12: 0.2 | D12: 1 | E12: 0 | F12: 0 | G12: 0 | H12: 0 | I12: 0 | J12: 0 | K12: 0
B13: <Intervention 3> | D13: 0 | E13: 0 | F13: 0 | G13: 0 | H13: 0 | I13: 0 | J13: 0 | K13: 0
B14: <Intervention 4> | D14: 0 | E14: 0 | F14: 0 | G14: 0 | H14: 0 | I14: 0 | J14: 0 | K14: 0
B15: KPI Score | C15: =SUM(C11:C14) -> 1 | D15: =D9*SUM(D11:D14)/2 -> 0.125 | E15: =E9*SUM(E11:E14)/2 -> 0 | F15: 0 | G15: 0 | H15: 0 | I15: 0 | J15: 0 | K15: 0
B16: Benefit Total | D16: =D15+E15 -> 0.125 | F16: =F15+G15 -> 0 | H16: =H15+I15 -> 0 | J16: =J15+K15 -> 0 | L16: =SUM(D16:K16) -> 0.125
A18: OPTION 2
A20: Title: | B20: Manage overall demand for court services and improve effectiveness of in-court technology
A21: Description: | B21: Focuses on managing the demand for court services through targeted community education and diversionary strategies, for both criminal and civil matters. Supplements this with improvements in in-court technology (within constraints of existing infrastructure) to increase efficiency of operations and safety of vulnerable witnesses.
D24: Benefit 1 | F24: Benefit 2 | H24: Benefit 3 | J24: Benefit 4 | L24: Weighted Benefit Score
D25: =Benefit1KPI1Rating -> 0.25 | E25: =Benefit1KPI2Rating -> 0.15 | F25: =Benefit2KPI1Rating -> 0.2 | G25: =Benefit2KPI2Rating -> 0.15 | H25: =Benefit3KPI1Rating -> 0.15 | I25: =Benefit3KPI2Rating -> 0.1 | J25: =Benefit4KPI1Rating -> 0 | K25: =Benefit4KPI2Rating -> 0
B26: Interventions | C26: % | D26: =Benefit1KPI1 -> KPI 1 More timely resolution | E26: =Benefit1KPI2 -> KPI 2 Reduction in costs | F26: =Benefit2KPI1 -> KPI 1 Reduction in re-offending | G26: =Benefit2KPI2 -> KPI 2 Increased program completion | H26: =Benefit3KPI1 -> KPI 2 Increased program completion | I26: =Benefit3KPI2 -> KPI 2 Reduce security risks | J26: =Benefit4KPI1 -> KPI 1 | K26: =Benefit4KPI2 -> KPI 2
B27: Develop community education programs and diversion strategies to resolve matters through non-court channels | C27: 0.5 | D27: 0 | E27: 1 | F27: 0 | G27: 0 | H27: 0 | I27: 0 | J27: 0 | K27: 0
B28: Divert portion of caseload to other regional courts with spare capacity | C28: 0.1 | D28: 1 | E28: 0 | F28: 0 | G28: 0 | H28: 0 | I28: 0 | J28: 0 | K28: 0
B29: Enhance in-court technology to support more remote-witnessing and digital evidence presentation | C29: 0.4 | D29: 0 | E29: 0 | F29: 0 | G29: 0 | H29: 0 | I29: 2 | J29: 0 | K29: 0
B30: <Intervention 4> | D30: 0 | E30: 0 | F30: 0 | G30: 0 | H30: 0 | I30: 0 | J30: 0 | K30: 0
B31: KPI Score | C31: =SUM(C27:C30) -> 1 | D31: =D25*SUM(D27:D30)/2 -> 0.125 | E31: =E25*SUM(E27:E30)/2 -> 0.075 | F31: =F25*SUM(F27:F30)/2 -> 0 | G31: =G25*SUM(G27:G30)/2 -> 0 | H31: =H25*SUM(H27:H30)/2 -> 0 | I31: =I25*SUM(I27:I30)/2 -> 0.1 | J31: =J25*SUM(J27:J30)/2 -> 0 | K31: =K25*SUM(K27:K30)/2 -> 0
B32: Benefit Total | D32: =D31+E31 -> 0.2 | F32: =F31+G31 -> 0 | H32: =H31+I31 -> 0.1 | J32: =J31+K31 -> 0 | L32: =SUM(D32:K32) -> 0.3
A34: OPTION 3
A36: Title: | B36: Reconfigure existing site and make more use of third party sites and services (multi-site model)
A37: Description: | B37: Introduces alternative modes of service delivery, at other sites and/or through partnership arrangements to address the demand and functionality pressures at Noojee and improve justice outcomes. In conjunction the existing site is remodelled and the in-court technology upgraded, making the most effective and efficient use of existing infrastructure and accommodating additional judiciary and staff. This improves the safety of the court precinct and the efficiency of services.
D40: Benefit 1 | F40: Benefit 2 | H40: Benefit 3 | J40: Benefit 4 | L40: Weighted Benefit Score
D41: =Benefit1KPI1Rating -> 0.25 | E41: =Benefit1KPI2Rating -> 0.15 | F41: =Benefit2KPI1Rating -> 0.2 | G41: =Benefit2KPI2Rating -> 0.15 | H41: =Benefit3KPI1Rating -> 0.15 | I41: =Benefit3KPI2Rating -> 0.1 | J41: =Benefit4KPI1Rating -> 0 | K41: =Benefit4KPI2Rating -> 0
B42: Interventions | C42: % | D42: =Benefit1KPI1 -> KPI 1 More timely resolution | E42: =Benefit1KPI2 -> KPI 2 Reduction in costs | F42: =Benefit2KPI1 -> KPI 1 Reduction in re-offending | G42: =Benefit2KPI2 -> KPI 2 Increased program completion | H42: =Benefit3KPI1 -> KPI 2 Increased program completion | I42: =Benefit3KPI2 -> KPI 2 Reduce security risks | J42: =Benefit4KPI1 -> KPI 1 | K42: =Benefit4KPI2 -> KPI 2
B43: Expand capability to provide more diverse responses in criminal and civil matters | C43: 0.2 | D43: 0 | E43: 1 | F43: 2 | G43: 2 | H43: 0 | I43: 0 | J43: 0 | K43: 0
B44: Enhance in-court technology to support more remote-witnessing and digital evidence presentation | C44: 0.25 | D44: 1 | E44: 1 | F44: 0 | G44: 0 | H44: 2 | I44: 0 | J44: 0 | K44: 0
B45: Provide additional space and reconfigure existing facilities to support a wider range of justice services | C45: 0.4 | D45: 1 | E45: 0 | F45: 0 | G45: 0 | H45: 0 | I45: 0 | J45: 1 | K45: 0
B46: Improve physical separation between parties and court activities | C46: 0.15 | D46: 0 | E46: 0 | F46: 0 | G46: 0 | H46: 0 | I46: 1 | J46: 0 | K46: 0
B47: KPI Score | C47: =SUM(C43:C46) -> 1 | D47: =D41*SUM(D43:D46)/2 -> 0.25 | E47: =E41*SUM(E43:E46)/2 -> 0.15 | F47: =F41*SUM(F43:F46)/2 -> 0.2 | G47: =G41*SUM(G43:G46)/2 -> 0.15 | H47: =H41*SUM(H43:H46)/2 -> 0.15 | I47: =I41*SUM(I43:I46)/2 -> 0.05 | J47: =J41*SUM(J43:J46)/2 -> 0 | K47: =K41*SUM(K43:K46)/2 -> 0
B48: Benefit Total | D48: =D47+E47 -> 0.4 | F48: =F47+G47 -> 0.35 | H48: =H47+I47 -> 0.2 | J48: =J47+K47 -> 0 | L48: =SUM(D48:K48) -> 0.95
A50: OPTION 4
A52: Title: | B52: Deliver the full range of court services from a purpose-built new facility at Noojee
A53: Description: | B53: This option allows for investment in entirely new integrated court facilities, including new in-court technology, that fully address the current and forecast capacity, service, and safety issues.
D56: Benefit 1 | F56: Benefit 2 | H56: Benefit 3 | J56: Benefit 4 | L56: Weighted Benefit Score
D57: =Benefit1KPI1Rating -> 0.25 | E57: =Benefit1KPI2Rating -> 0.15 | F57: =Benefit2KPI1Rating -> 0.2 | G57: =Benefit2KPI2Rating -> 0.15 | H57: =Benefit3KPI1Rating -> 0.15 | I57: =Benefit3KPI2Rating -> 0.1 | J57: =Benefit4KPI1Rating -> 0 | K57: =Benefit4KPI2Rating -> 0
B58: Interventions | C58: % | D58: =Benefit1KPI1 -> KPI 1 More timely resolution | E58: =Benefit1KPI2 -> KPI 2 Reduction in costs | F58: =Benefit2KPI1 -> KPI 1 Reduction in re-offending | G58: =Benefit2KPI2 -> KPI 2 Increased program completion | H58: =Benefit3KPI1 -> KPI 2 Increased program completion | I58: =Benefit3KPI2 -> KPI 2 Reduce security risks | J58: =Benefit4KPI1 -> KPI 1 | K58: =Benefit4KPI2 -> KPI 2
B59: Enhance in-court technology to support more remote-witnessing and digital evidence presentation | C59: 0.15 | D59: 1 | E59: 1 | F59: 0 | G59: 0 | H59: 2 | I59: 0 | J59: 0 | K59: 0
B60: Expand capability to provide more diverse responses in criminal and civil matters | C60: 0.25 | D60: 0 | E60: 1 | F60: 2 | G60: 2 | H60: 0 | I60: 0 | J60: 0 | K60: 0
B61: Provide additional space to increase capacity, improve safety and provide full range of court services from Noojee | C61: 0.6 | D61: 1 | E61: 0 | F61: 0 | G61: 0 | H61: 0 | I61: 2 | J61: 0 | K61: 0
B62: <Intervention 4> | D62: 0 | E62: 0 | F62: 0 | G62: 0 | H62: 0 | I62: 0 | J62: 0 | K62: 0
B63: KPI Score | C63: =SUM(C59:C62) -> 1 | D63: =D57*SUM(D59:D62)/2 -> 0.25 | E63: =E57*SUM(E59:E62)/2 -> 0.15 | F63: =F57*SUM(F59:F62)/2 -> 0.2 | G63: =G57*SUM(G59:G62)/2 -> 0.15 | H63: =H57*SUM(H59:H62)/2 -> 0.15 | I63: =I57*SUM(I59:I62)/2 -> 0.1 | J63: =J57*SUM(J59:J62)/2 -> 0 | K63: =K57*SUM(K59:K62)/2 -> 0
B64: Benefit Total | D64: =D63+E63 -> 0.4 | F64: =F63+G63 -> 0.35 | H64: =H63+I63 -> 0.25 | J64: =J63+K63 -> 0 | L64: =SUM(D64:K64) -> 1
A66: OPTION 5
A68: Title: | B68: Adopt a regional approach to delivery of court services
A69: Description: | B69: Builds capacity at neighbouring regional courts and develops a centre of excellence model, providing some economies of scale and operating efficiencies. Noojee becomes a specialist centre for therapeutic justice and ADR services, serving wider geographical area than currently.
D72: Benefit 1 | F72: Benefit 2 | H72: Benefit 3 | J72: Benefit 4 | L72: Weighted Benefit Score
D73: =Benefit1KPI1Rating -> 0.25 | E73: =Benefit1KPI2Rating -> 0.15 | F73: =Benefit2KPI1Rating -> 0.2 | G73: =Benefit2KPI2Rating -> 0.15 | H73: =Benefit3KPI1Rating -> 0.15 | I73: =Benefit3KPI2Rating -> 0.1 | J73: =Benefit4KPI1Rating -> 0 | K73: =Benefit4KPI2Rating -> 0
B74: Interventions | C74: % | D74: =Benefit1KPI1 -> KPI 1 More timely resolution | E74: =Benefit1KPI2 -> KPI 2 Reduction in costs | F74: =Benefit2KPI1 -> KPI 1 Reduction in re-offending | G74: =Benefit2KPI2 -> KPI 2 Increased program completion | H74: =Benefit3KPI1 -> KPI 2 Increased program completion | I74: =Benefit3KPI2 -> KPI 2 Reduce security risks | J74: =Benefit4KPI1 -> KPI 1 | K74: =Benefit4KPI2 -> KPI 2
B75: Reallocate majority of Noojee case load to other regional courts | C75: 0.2 | D75: 1 | E75: 0 | F75: 0 | G75: 0 | H75: 0 | I75: 0 | J75: 0 | K75: 0
B76: Expand court capacity, technology and services at other courts in the region | C76: 0.5 | D76: 1 | E76: 0 | F76: 0 | G76: 0 | H76: 2 | I76: 2 | J76: 0 | K76: 0
B77: Upgrade capacity at Nooje to develop specialist centre for ADR and therapeutic justice services | C77: 0.3 | D77: 0 | E77: 1 | F77: 2 | G77: 2 | H77: 0 | I77: 0 | J77: 0 | K77: 0
B78: <Intervention 4> | D78: 0 | E78: 0 | F78: 0 | G78: 0 | H78: 0 | I78: 0 | J78: 0 | K78: 0
B79: KPI Score | C79: =SUM(C75:C78) -> 1 | D79: =D73*SUM(D75:D78)/2 -> 0.25 | E79: =E73*SUM(E75:E78)/2 -> 0.075 | F79: =F73*SUM(F75:F78)/2 -> 0.2 | G79: =G73*SUM(G75:G78)/2 -> 0.15 | H79: =H73*SUM(H75:H78)/2 -> 0.15 | I79: =I73*SUM(I75:I78)/2 -> 0.1 | J79: =J73*SUM(J75:J78)/2 -> 0 | K79: =K73*SUM(K75:K78)/2 -> 0
B80: Benefit Total | D80: =D79+E79 -> 0.325 | F80: =F79+G79 -> 0.35 | H80: =H79+I79 -> 0.25 | J80: =J79+K79 -> 0 | L80: =SUM(D80:K80) -> 0.925
A82: OPTION 6
A84: Title: | B84: <Option 6 title>
A85: Description: | B85: <Option 6 description>
D88: Benefit 1 | F88: Benefit 2 | H88: Benefit 3 | J88: Benefit 4 | L88: Weighted Benefit Score
D89: =Benefit1KPI1Rating -> 0.25 | E89: =Benefit1KPI2Rating -> 0.15 | F89: =Benefit2KPI1Rating -> 0.2 | G89: =Benefit2KPI2Rating -> 0.15 | H89: =Benefit3KPI1Rating -> 0.15 | I89: =Benefit3KPI2Rating -> 0.1 | J89: =Benefit4KPI1Rating -> 0 | K89: =Benefit4KPI2Rating -> 0
B90: Interventions | C90: % | D90: =Benefit1KPI1 -> KPI 1 More timely resolution | E90: =Benefit1KPI2 -> KPI 2 Reduction in costs | F90: =Benefit2KPI1 -> KPI 1 Reduction in re-offending | G90: =Benefit2KPI2 -> KPI 2 Increased program completion | H90: =Benefit3KPI1 -> KPI 2 Increased program completion | I90: =Benefit3KPI2 -> KPI 2 Reduce security risks | J90: =Benefit4KPI1 -> KPI 1 | K90: =Benefit4KPI2 -> KPI 2
B91: <Intervention 1> | D91: 0 | E91: 0 | F91: 0 | G91: 0 | H91: 0 | I91: 0 | J91: 0 | K91: 0
B92: <Intervention 2> | D92: 0 | E92: 0 | F92: 0 | G92: 0 | H92: 0 | I92: 0 | J92: 0 | K92: 0
B93: <Intervention 3> | D93: 0 | E93: 0 | F93: 0 | G93: 0 | H93: 0 | I93: 0 | J93: 0 | K93: 0
B94: <Intervention 4> | D94: 0 | E94: 0 | F94: 0 | G94: 0 | H94: 0 | I94: 0 | J94: 0 | K94: 0
B95: KPI Score | C95: =SUM(C91:C94) -> 0 | D95: =D89*SUM(D91:D94)/2 -> 0 | E95: =E89*SUM(E91:E94)/2 -> 0 | F95: =F89*SUM(F91:F94)/2 -> 0 | G95: =G89*SUM(G91:G94)/2 -> 0 | H95: =H89*SUM(H91:H94)/2 -> 0 | I95: =I89*SUM(I91:I94)/2 -> 0 | J95: =J89*SUM(J91:J94)/2 -> 0 | K95: =K89*SUM(K91:K94)/2 -> 0
B96: Benefit Total | D96: =D95+E95 -> 0 | F96: =F95+G95 -> 0 | H96: =H95+I95 -> 0 | J96: =J95+K95 -> 0 | L96: =SUM(D96:K96) -> 0

Sheet ROA Worksheet
I2: Department: | J2: <department name>
B3: Improving efficiency and responsiveness of justice services in Noojee: | I3: Investor: | J3: <first name surname>
I4: Facilitator: | J4: <first name surname>
B5: Redevelopment of Noojee court and services | I5: Initial Workshop: | J5: <did/mm/yyyy>
I6: Version No.: | J6: <e.g. 0.1, 1.0 etc.>
I7: Last Modified by: | J7: <first name surname did/mm/yyyy >
E9: Response options
A10: Interventions | E10: Option 1 | F10: Option 2 | G10: Option 3 | H10: Option 4 | I10: Option 5 | J10: Option 6
E11: =Option1Title -> Business as usual / Do nothing | F11: =Option2Title -> Manage overall demand for court services and improve effectiveness of in-court technology | G11: =Option3Title -> Reconfigure existing site and make more use of third party sites and services (multi-site model) | H11: =Option4Title -> Deliver the full range of court services from a purpose-built new facility at Noojee | I11: =Option5Title -> Adopt a regional approach to delivery of court services | J11: =Option6Title -> <Option 6 title>
A12: Maintain current court building, capacity and level of operations | E12: 0.8
A13: Divert portion of caseload to other regional courts with spare capacity | E13: 0.2 | F13: 0.1
A14: Develop community education programs and diversion strategies to resolve matters through non-court channels | F14: 0.5
A15: Enhance in-court technology to support more remote-witnessing and digital evidence presentation | F15: 0.4 | G15: 0.25 | H15: 0.15
A16: Expand capability to provide more diverse responses in criminal and civil matters | G16: 0.2 | H16: 0.25
A17: Provide additional space and reconfigure existing facilities to support a wider range of justice services | G17: 0.4
A18: Improve physical separation between parties and court activities | G18: 0.15
A19: Provide additional space to increase capacity, improve safety and provide full range of court services from Noojee | H19: 0.6
A20: Reallocate majority of Noojee case load to other regional courts | I20: 0.2
A21: Expand court capacity, technology and services at other courts in the region | I21: 0.5
A22: Upgrade capacity at Nooje to develop specialist centre for ADR and therapeutic justice services | I22: 0.3
A24: Total | E24: =SUM(E12:E23) -> 1 | F24: 1 | G24: 1 | H24: 1 | I24: 1 | J24: 0
A25: NOTES
A26: 1 | B26: The range of interventions that could respond to the identified problem and deliver the KPIs for the expected benefits are listed in the left-hand column.
A27: 2 | B27: Against the listed interventions a spread of response options are structured to provide genuine alternative approaches to the problem.
A28: 3 | B28: Response options should be titled to reflect the underlying strategy.
A29: 4 | B29: The shaded boxes indicate which interventions are used in each response and the percentage (%) indicates the relative importance of each specific intervention within the response. The total should be 100%.
A30: 5 | B30: This is a balance of two factors: the importance of the intervention in delivering the response option, and the likely effort/cost involved.
E32: Response options
A33: Benefits | E33: Option 1 | F33: Option 2 | G33: Option 3 | H33: Option 4 | I33: Option 5 | J33: Option 6
E34: =E11 -> Business as usual / Do nothing | F34: Manage overall demand for court services and improve effectiveness of in-court technology | G34: Reconfigure existing site and make more use of third party sites and services (multi-site model) | H34: Deliver the full range of court services from a purpose-built new facility at Noojee | I34: Adopt a regional approach to delivery of court services | J34: <Option 6 title>
A36: Percentage of full benefit to be delivered | E36: =Option1WeightedBenefit -> 0.125 | F36: =Option2WeightedBenefit -> 0.3 | G36: =Option3WeightedBenefit -> 0.95 | H36: =Option4WeightedBenefit -> 1 | I36: =Option5WeightedBenefit -> 0.925 | J36: =Option6WeightedBenefit -> 0
A37: Benefit 1 | C37: More efficient courts | D37: 0.4 | E37: =Option1Benefit1 -> 0.125 | F37: =Option2Benefit1 -> 0.2 | G37: =Option3Benefit1 -> 0.4 | H37: =Option4Benefit1 -> 0.4 | I37: =Option5Benefit1 -> 0.325 | J37: =Option6Benefit1 -> 0
A38: Benefit 2 | C38: More effective justice services | D38: 0.35 | E38: =Option1Benefit2 -> 0 | F38: =Option2Benefit2 -> 0 | G38: =Option3Benefit2 -> 0.35 | H38: =Option4Benefit2 -> 0.35 | I38: =Option5Benefit2 -> 0.35 | J38: =Option6Benefit2 -> 0
A39: Benefit 3 | C39: Improved court safety | D39: 0.25 | E39: =Option1Benefit3 -> 0 | F39: =Option2Benefit3 -> 0.1 | G39: =Option3Benefit3 -> 0.2 | H39: =Option4Benefit3 -> 0.25 | I39: =Option5Benefit3 -> 0.25 | J39: =Option6Benefit3 -> 0
A40: Benefit 4 | C40: <Insert description here> | E40: =Option1Benefit4 -> 0 | F40: =Option2Benefit4 -> 0 | G40: =Option3Benefit4 -> 0 | H40: =Option4Benefit4 -> 0 | I40: =Option5Benefit4 -> 0 | J40: =Option6Benefit4 -> 0
A42: Risk and uncertainty
A43: Risk 1 | E43: Other courts lack capacity to take diverted caseload M | F43: Community education programs do not have desired and timely impact on behavioural change H | G43: Suitable land for annex site not available M | H43: A suitable site is not available M | I43: Delivery of new services across wider region is more complex and costly than envisaged H | J43: <Insert description and rating - H,M,L>
A44: Risk 2 | F44: Insufficient non-court channels available and/or generate poor outcomes for users H | G44: Demand increases faster than expected (drug-related crime, domestic violence, sexual offences) placing excessive pressures on remodelled courthouse and requiring reconsideration of other options M | H44: Long-term demand does not grow in accordance with current forecasts leading to either renewed pressure on capacity or excess capacity H | I44: Centres of excellence approach insufficiently flexible to respond to changing volumes and patterns of demand M | J44: <Insert description and rating - H,M,L>
A45: Risk 3 | F45: Existing infrastructure limits effectiveness of new in-court technology services M | G45: Insufficient skills and service providers in region to support new range of services M | H45: Lack of interest from local government or private market to buy or take over responsibilities for old courthouse H | I45: Difficulty securing appropriately qualified and skilled staff to support speciliased services in each region M | J45: <Insert description and rating - H,M,L>
A46: Risk 4 | F46: Other courts lack capacity to take diverted caseload M | G46: Remodelling is more complex, costly or time-consuming than envisaged H | J46: <Insert description and rating - H,M,L>
A48: Disbenefits
A49: Disbenefit 1 | E49: Delays and poor access to justice services will increase H | F49: Strategy seen as being 'soft on crime' with long lead times M | G49: Substantial disruption during construction will impact short to medium term capacity M | H49: Public recognizes little value for the investment because of the long delivery time M | I49: Court users face longer travel times to court H | J49: <Insert description and criticality - H,M,L>
A50: Disbenefit 2 | E50: Security risks of precinct are unmitigated H | F50: Security risks of precinct are not fully mitigated H | G50: Seen to defer consideration of a long-term solution to court service delivery in region M | I50: Multiple communities perceive loss of service and resist change H | J50: <Insert description and criticality - H,M,L>
A52: Interdependencies
A53: Interdependency 1 | F53: Active co-operation of other Government agencies in demand management strategies H | G53: Current policy settings regarding jurisdictional boundaries, and legal, policing and sentencing practices are materially unchanged H | H53: Current policy settings regarding jurisdictional boundaries, and legal, policing and sentencing practices are materially unchanged H | I53: Strong leadership from key stakeholders across multiple jurisdictions, LGAs, and communities H | J53: <Insert description and impact - H,M,L>
A54: Interdependency 2 | F54: Strong support from judicial officers for changed service modell & approach H | I54: Adequate investment in supporting digital and online services M | J54: <Insert description and impact - H,M,L>
A56: Is a real options analysis workshop required? Yes/No/Maybe | E56: No | F56: No | G56: No | H56: Yes | I56: Yes | J56: <…>
A58: Cost
A59: Capital total estimated investment (TEI) (range) | E59: $ mil - $n mil | F59: $0.8 mil - $1 mil | G59: $50 mil - $80 mil | H59: $300 mil - $350 mil | I59: $100 mil - $120 mil | J59: $n mil - $n mil
A60: Net incremental output costs (range) | E60: $n mil - $n mil pa | F60: $1.5 mil - $2 mil | G60: $2mil - $3 mil | H60: $n mil - $n mil pa | I60: $n mil - $n mil pa | J60: $n mil - $n mil pa
A61: Time
A62: (Range) | E62: mm-mm | F62: 36mm-60mm | G62: 12mm-48mm | H62: 36mm-72mm | I62: 18mm-48mm | J62: mm-mm
A63: Ranking
A64: 1-6 | F64: 3 | G64: 1 | I64: 2
A67: Overall Assessment: | E67: Option 3 is the preferred option. It delivers well on the benefits, with a manageable risk profile and significantly lower costs than the other two high benefit delivery options - Options 4 and 5. Option 3 does continue to invest in an existing asset which has inherent limitations and is likely not to be a long-term solution for the region but it represents a cost-effective and pragmatic reponse to current issues whilst other more innovative options of service delivery can be researched and developed. Option 4, as a new-build option, is an entirely asset-based response to the problems at Noojee which locks in a court capacity for the region which has a high risk of not matching future demand. Option 5 is a regional approach which is innovative and demonstrates value for money. It would, however, give rise to community and political concern and would demand strong leadership and stakeholder management, and highly effective support from digital services, for full benefit delivery. Option 2 has low benefit delivery but represents an innovative non-asset based approach which could generate better community outcomes in the longer term, although with risks around the nature and timing of benefit delivery. It would need strong stakeholder support and is highly dependent upon effective co-operation between agencies. Option 1 confirms the significant risks and disbenefits of continuing with current situation at Noojee and is not recommended.
A70: Recommendation: | E70: That Option 3 is further developed to confirm that the scale of benefit delivery is accurate and that the cost, risk and timeframe estimates can be validated. Options 2 and 5 should also be analysed in more detail as potential alternatives to Option 3, if the assumptions behind Option 3 cannot be validated.
A73: Notes:
A74: a | B74: Benefits - % benefit weighting derived from ILM The value the investment will provide to the organisation or its customers. Benefits are the of successfully responding to the identified problem. A benefit is supported by one or more key performance indicators (KPIs).
A75: b | B75: Benefit delivery- rank (0-Marginal, 1-Partial, 2-Full) - See Worksheet 2.
A76: c | B76: Dis-benefits - negative impacts that are likely to occur as a direct consequence of successfully implementing this option
A77: d | B77: Risk - one to four of the most significant things that might result in the delivery of the the benefits being significantly different from expectations. These should include exogenous factors that may influence the investment's benefit delivery
A78: e | B78: Interdependencies - identify external factors that need to be in place if an intervention is to be successful
A79: f | B79: Real options workshop - determine whether a real options, or managing uncertainty, analysis workshop is required.
A80: g | B80: Timeframe - from commencement of funding to date of full benefit delivery (not completion of the investment delivery)
A81: h | B81: Capital TEI- range should be sufficiently reliable to provide an order of magnitude for the response
A82: i | B82: Output costs- output costs should be identified as these may substantially differ between responses. These should be the incremental costs, directly incurred as a result of the investment, net of any expected savings as a result of the investment
A83: j | B83: Ranking - considering all factors, which response option is the preferred approach to resolving the problem?
A84: k | B84: Overall Assessment - why was the preferred response chosen? Are there any other assessment observations?
A85: l | B85: Recommendation - how should this investment proceed…or not?
A86: Instructions for creating Response Options Analysis Report (Word)
A87: a | B87: Complete KPI intervention assess and then select Copy Interventions function under ROA Report
A88: b | B88: Complete risk and uncertainty, disbenefit, interdependencies, cost, timeframe, ranking and overall assessment and recommendation fields (after relveant workshops)
A89: c | B89: Save and select Create Report function to generate Word Report of Response Options Analysis
